fUSD/lending_fUSD_20240212
["ID","MTS","AMOUNT","RATE_DAILY","PERIOD"]
[313785848,1707724260297,-500.0,0.00023113,2]
[313785849,1707724260307,-769.24,0.00023113,2]
[313785850,1707724260316,-669.16,0.00023113,2]
[313785851,1707724260325,-537.83,0.00023113,2]
[313785852,1707724260335,-500.0,0.00023113,2]
[313785853,1707724260344,-565.89,0.00023113,2]
[313785854,1707724260353,-425.02,0.00023113,2]
[313785855,1707724260362,-793.91,0.00023113,2]
[313785856,1707724260371,-624.91,0.00023113,2]
[313785857,1707724260381,-1052.88,0.00023113,2]
[313785858,1707724260390,-687.92,0.00023113,2]
[313785859,1707724260399,-500.0,0.00023113,2]
[313785860,1707724260409,-890.74,0.00023113,2]
[313785861,1707724260422,-815.41,0.00023113,2]
[313785862,1707724260431,-583.58,0.00023113,2]
[313785863,1707724260440,-937.88,0.00023113,2]
[313785864,1707724260449,-500.0,0.00023113,2]
[313785865,1707724260459,-713.39,0.00023113,2]
[313785866,1707724260469,-677.31,0.00023113,2]
[313785867,1707724260478,-500.0,0.00023113,2]
[313785868,1707724260487,-719.29,0.00023113,2]
[313785869,1707724260497,-1300.69,0.00023113,2]
[313785870,1707724260506,-1183.66,0.00023113,2]
[313785871,1707724260515,-587.65,0.00023113,2]
[313785872,1707724260524,-888.66,0.00023113,2]
[313785873,1707724260534,-887.34,0.00023113,2]
[313785874,1707724260543,-1482.85,0.00023113,2]
[313785875,1707724260552,-672.72,0.00023113,2]
[313785876,1707724260562,-507.87,0.00023113,2]
[313785877,1707724260571,-783.44,0.00023113,2]
[313785878,1707724260580,-504.77,0.00023113,2]
[313785879,1707724260590,-500.0,0.00023113,2]
[313785880,1707724260600,-751.88,0.00023113,2]
[313785881,1707724260609,-500.0,0.00023113,2]
[313785882,1707724260618,-500.0,0.00023113,2]
[313785883,1707724260628,-500.0,0.00023113,2]
[313785884,1707724260637,-500.0,0.00023113,2]
[313785885,1707724260646,-500.0,0.00023113,2]
[313785886,1707724260655,-1243.18,0.00023113,2]
[313785887,1707724260664,-500.0,0.00023113,2]
[313785888,1707724260673,-974.3,0.00023113,2]
[313785889,1707724260682,-500.0,0.00023113,2]
[313785890,1707724260692,-7827.18,0.00023113,2]
[313785891,1707724260701,-500.0,0.00023113,2]
[313785892,1707724260710,-500.0,0.00023113,2]
[313785893,1707724260719,-500.0,0.00023113,2]
[313785894,1707724260729,-967.31,0.00023113,2]
[313785895,1707724260738,-2173.97,0.00023113,2]
[313785896,1707724260747,-500.0,0.00023113,2]
[313785897,1707724260756,-1551.42,0.00023113,2]
[313785898,1707724260764,-1390.31,0.00023113,2]
[313785899,1707724260773,-500.0,0.00023113,2]
[313785900,1707724260782,-500.0,0.00023113,2]
[313785901,1707724260791,-537.36,0.00023113,2]
[313785902,1707724260800,-500.0,0.00023113,2]
[313785903,1707724260809,-974.61,0.00023113,2]
[313785904,1707724260818,-2945.14,0.00023113,2]
[313785905,1707724260827,-500.0,0.00023113,2]
[313785906,1707724260836,-806.3,0.00023113,2]
[313785907,1707724260845,-1019.27,0.00023113,2]
[313785908,1707724260854,-570.23,0.00023113,2]
[313785909,1707724260863,-500.0,0.00023113,2]
[313785910,1707724260872,-922.68,0.00023113,2]
[313785911,1707724260881,-587.74,0.00023113,2]
[313785912,1707724260890,-1002.52,0.00023113,2]
[313785913,1707724260899,-1154.55,0.00023113,2]
[313785914,1707724260909,-1257.42,0.00023113,2]
[313785915,1707724260918,-880.38,0.00023113,2]
[313785916,1707724260926,-719.41,0.00023113,2]
[313785917,1707724260935,-500.0,0.00023113,2]
[313785918,1707724260944,-744.24,0.00023113,2]
[313785919,1707724260954,-500.0,0.00023113,2]
[313785920,1707724260963,-500.0,0.00023113,2]
[313785921,1707724260973,-506.58,0.00023113,2]
[313785922,1707724260982,-655.13,0.00023113,2]
[313785923,1707724260991,-1365.54,0.00023113,2]
[313785924,1707724261000,-500.0,0.00023113,2]
[313785925,1707724261010,-1350.62,0.00023113,2]
[313785926,1707724261019,-772.77,0.00023113,2]
[313785927,1707724261028,-500.0,0.00023113,2]
[313785928,1707724261037,-2935.99,0.00023113,2]
[313785929,1707724261045,-500.0,0.00023113,2]
[313785930,1707724261055,-500.0,0.00023113,2]
[313785931,1707724261064,-1330.37,0.00023113,2]
[313785932,1707724261073,-500.0,0.00023113,2]
[313785933,1707724261082,-1466.7,0.00023113,2]
[313785934,1707724261091,-644.64989151,0.00023113,2]
[313785935,1707724261100,-500.0,0.00023113,2]
[313785936,1707724261109,-500.0,0.00023113,2]
[313785937,1707724261118,-992.91,0.00023113,2]
[313785938,1707724261127,-3717.73,0.00023113,2]
[313785939,1707724261136,-500.0,0.00023113,2]
[313785940,1707724261145,-500.0,0.00023113,2]
[313785941,1707724261155,-500.0,0.00023113,2]
[313785942,1707724261164,-3566.79,0.00023113,2]
[313785943,1707724261173,-2751.21,0.00023113,2]
[313785944,1707724261183,-603.29,0.00023113,2]
[313785945,1707724261192,-500.0,0.00023113,2]
[313785946,1707724261203,-500.0,0.00023113,2]
[313785947,1707724261212,-1093.06,0.00023113,2]
[313785948,1707724261221,-2597.39,0.00023113,2]
[313785949,1707724261230,-1658.55,0.00023113,2]
[313785950,1707724261239,-754.43,0.00023113,2]
[313785951,1707724261248,-500.0,0.00023113,2]
[313785952,1707724261257,-500.0,0.00023113,2]
[313785953,1707724261266,-1509.11,0.00023113,2]
[313785954,1707724261276,-933.4,0.00023113,2]
[313785955,1707724261285,-500.0,0.00023113,2]
[313785956,1707724261294,-500.0,0.00023113,2]
[313785957,1707724261303,-1039.67,0.00023113,2]
[313785958,1707724261312,-500.0,0.00023113,2]
[313785959,1707724261321,-558.4,0.00023113,2]
[313785960,1707724261330,-581.28,0.00023113,2]
[313785961,1707724261339,-2115.36,0.00023113,2]
[313785962,1707724261348,-1608.32,0.00023113,2]
[313785963,1707724261357,-535.09,0.00023113,2]
[313785964,1707724261366,-500.0,0.00023113,2]
[313785965,1707724261375,-1871.04,0.00023113,2]
[313785966,1707724261384,-13505.82,0.00023113,2]
[313785967,1707724261393,-500.0,0.00023113,2]
[313785968,1707724261403,-500.0,0.00023113,2]
[313785969,1707724261412,-1098.36,0.00023113,2]
[313785970,1707724261425,-521.2,0.00023113,2]
[313785971,1707724261435,-500.0,0.00023113,2]
[313785972,1707724261444,-2160.67,0.00023113,2]
[313785973,1707724261453,-1598.78,0.00023113,2]
[313785974,1707724261463,-500.0,0.00023113,2]
[313785975,1707724261472,-500.0,0.00023113,2]
[313785976,1707724261481,-500.0,0.00023113,2]
[313785977,1707724261491,-728.66,0.00023113,2]
[313785978,1707724261503,-3742.33,0.00023113,2]
[313785979,1707724261513,-500.0,0.00023113,2]
[313785980,1707724261522,-470.96985518,0.00023113,2]
[313785981,1707724261532,-500.0,0.00023113,2]
[313785982,1707724261541,-708.87,0.00023113,2]
[313785983,1707724261550,-500.0,0.00023113,2]
[313785984,1707724261559,-500.0,0.00023113,2]
[313785985,1707724261570,-500.0,0.00023113,2]
[313785986,1707724261580,-500.0,0.00023113,2]
[313785987,1707724261589,-612.51,0.00023113,2]
[313785988,1707724261598,-500.0,0.00023113,2]
[313785989,1707724261608,-500.0,0.00023115,2]
[313785990,1707724261617,-500.0,0.00023115,2]
[313785991,1707724261626,-500.0,0.00023115,2]
[313785992,1707724261635,-500.0,0.00023115,2]
[313785993,1707724261644,-500.0,0.00023115,2]
[313785994,1707724261653,-500.0,0.00023115,2]
[313785995,1707724261662,-500.0,0.00023115,2]
[313785996,1707724261671,-500.0,0.00023115,2]
[313785997,1707724261680,-500.0,0.00023115,2]
[313785998,1707724261689,-500.0,0.00023115,2]
[313785999,1707724261697,-500.0,0.00023115,2]
[313786000,1707724261706,-501.31,0.00023115,2]
[313786001,1707724261715,-500.0,0.00023115,2]
[313786002,1707724261724,-500.0,0.00023115,2]
[313786003,1707724261733,-500.0,0.00023115,2]
[313786004,1707724261742,-500.0,0.00023115,2]
[313786005,1707724261751,-500.0,0.00023115,2]
[313786006,1707724261760,-500.0,0.00023115,2]
[313786007,1707724261768,-500.0,0.00023115,2]
[313786008,1707724261777,-1225.76,0.00023115,2]
[313786009,1707724261786,-500.0,0.00023115,2]
[313786010,1707724261795,-500.0,0.00023115,2]
[313786011,1707724261804,-464.1012445,0.00023115,2]
[313786012,1707724261813,-503.01,0.00023115,2]
[313786013,1707724261822,-501.14,0.00023115,2]
[313786014,1707724261831,-500.0,0.00023115,2]
[313786015,1707724261840,-500.0,0.00023115,2]
[313786016,1707724261849,-500.0,0.00023115,2]
[313786017,1707724261858,-868.66,0.00023115,2]
[313786018,1707724261867,-500.0,0.00023115,2]
[313786019,1707724261876,-500.0,0.00023115,2]
[313786020,1707724261885,-500.0,0.00023115,2]
[313786021,1707724261894,-1657.54,0.00023115,2]
[313786022,1707724261903,-500.0,0.00023115,2]
[313786023,1707724261912,-500.0,0.00023115,2]
[313786024,1707724261921,-500.0,0.00023115,2]
[313786025,1707724261930,-500.0,0.00023115,2]
[313786026,1707724261939,-937.0,0.00023115,2]
[313786027,1707724261948,-500.0,0.00023115,2]
[313786028,1707724261959,-500.0,0.00023115,2]
[313786029,1707724261968,-836.61,0.00023115,2]
[313786030,1707724261977,-500.0,0.00023115,2]
[313786031,1707724261986,-250.0,0.00023115,2]
[313786032,1707724261994,-789.02,0.00023115,2]
[313786033,1707724262003,-500.0,0.00023115,2]
[313786034,1707724262013,-500.0,0.00023115,2]
[313786035,1707724262022,-500.0,0.00023115,2]
[313786036,1707724262031,-500.0,0.00023115,2]
[313786037,1707724262041,-741.07,0.00023115,2]
[313786038,1707724262052,-702.48,0.00023115,2]
[313786039,1707724262062,-500.0,0.00023115,2]
[313786040,1707724262072,-1093.1,0.00023115,2]
[313786041,1707724262082,-500.0,0.00023115,2]
[313786042,1707724262092,-1102.3,0.00023115,2]
[313786043,1707724262102,-500.0,0.00023115,2]
[313786044,1707724262111,-500.0,0.00023115,2]
[313786045,1707724262120,-500.0,0.00023115,2]
[313786046,1707724262130,-1010.79,0.00023115,2]
[313786047,1707724262139,-500.0,0.00023115,2]
[313786048,1707724262149,-500.0,0.00023115,2]
[313786049,1707724262159,-500.0,0.00023115,2]
[313786050,1707724262168,-500.0,0.00023115,2]
[313786051,1707724262177,-500.0,0.00023115,2]
[313786052,1707724262185,-640.8084887,0.00023115,2]
[313786053,1707724262194,-500.0,0.00023115,2]
[313786054,1707724262203,-1081.23,0.00023115,2]
[313786055,1707724262217,-500.0,0.00023115,2]
[313786056,1707724262226,-519.0,0.00023115,2]
[313786057,1707724262235,-500.0,0.00023115,2]
[313786058,1707724262245,-858.73,0.00023115,2]
[313786059,1707724262256,-500.0,0.00023115,2]
[313786060,1707724262265,-500.0,0.00023115,2]
[313786061,1707724262273,-1022.22,0.00023115,2]
[313786062,1707724262283,-500.0,0.00023115,2]
[313786063,1707724262292,-500.0,0.00023115,2]
[313786064,1707724262301,-968.51,0.00023115,2]
[313786065,1707724262310,-500.0,0.00023115,2]
[313786066,1707724262320,-1029.72,0.00023115,2]
[313786067,1707724262495,-905.03,0.00023115,2]
[313786068,1707724262505,-500.0,0.00023115,2]
[313786069,1707724262514,-500.0,0.00023115,2]
[313786070,1707724262523,-500.0,0.00023115,2]
[313786071,1707724262533,-500.0,0.00023115,2]
[313786072,1707724262543,-500.0,0.00023115,2]
[313786073,1707724262552,-483.88253625,0.00023115,2]
[313786074,1707724262562,-500.0,0.00023115,2]
[313786075,1707724262571,-565.78,0.00023115,2]
[313786076,1707724262580,-758.66,0.00023115,2]
[313786077,1707724262590,-500.0,0.00023115,2]
[313786078,1707724262599,-500.0,0.00023115,2]
[313786079,1707724262608,-500.0,0.00023115,2]
[313786080,1707724262617,-416.82146162,0.00023115,2]
[313786081,1707724262626,-500.0,0.00023115,2]
[313786082,1707724262635,-500.0,0.00023115,2]
[313786083,1707724262644,-985.25,0.00023115,2]
[313786084,1707724262653,-637.04,0.00023115,2]
[313786085,1707724262663,-1101.79,0.00023115,2]
[313786086,1707724262672,-500.0,0.00023115,2]
[313786087,1707724262681,-564.71,0.00023115,2]
[313786088,1707724262691,-501.05,0.00023115,2]
[313786089,1707724262700,-500.0,0.00023115,2]
[313786090,1707724262710,-500.0,0.00023115,2]
[313786091,1707724262718,-500.0,0.00023115,2]
[313786092,1707724262728,-500.0,0.00023115,2]
[313786093,1707724262737,-500.0,0.00023115,2]
[313786094,1707724262745,-500.0,0.00023115,2]
[313786095,1707724262754,-1934.66,0.00023115,2]
[313786096,1707724262763,-500.0,0.00023115,2]
[313786097,1707724262772,-500.0,0.00023115,2]
[313786098,1707724262781,-500.0,0.00023115,2]
[313786099,1707724262790,-740.57,0.00023115,2]
[313786100,1707724262799,-500.0,0.00023115,2]
[313786101,1707724262808,-644.41,0.00023115,2]
[313786102,1707724262817,-500.0,0.00023115,2]
[313786103,1707724262826,-321.86078074,0.00023115,2]
[313786104,1707724262839,-970.49,0.00023115,2]
[313786105,1707724262849,-500.0,0.00023115,2]
[313786106,1707724262858,-500.0,0.00023115,2]
[313786107,1707724262867,-385.19931025,0.00023115,2]
[313786108,1707724262877,-500.0,0.00023115,2]
[313786109,1707724262886,-500.0,0.00023115,2]
[313786110,1707724262896,-500.0,0.00023115,2]
[313786111,1707724262906,-500.0,0.00023115,2]
[313786112,1707724262915,-956.03,0.00023115,2]
[313786113,1707724262925,-500.0,0.00023115,2]
[313786114,1707724262935,-500.0,0.00023115,2]
[313786115,1707724262944,-500.0,0.00023115,2]
[313786116,1707724262953,-2083.73,0.00023115,2]
[313786117,1707724262963,-500.0,0.00023115,2]
[313786118,1707724262973,-500.0,0.00023115,2]
[313786119,1707724262982,-500.0,0.00023115,2]
[313786120,1707724262991,-500.0,0.00023115,2]
[313786121,1707724263001,-500.0,0.00023115,2]
[313786122,1707724263011,-913.37,0.00023115,2]
[313786123,1707724263020,-500.0,0.00023115,2]
[313786124,1707724263029,-500.0,0.00023115,2]
[313786125,1707724263039,-576.68,0.00023115,2]
[313786126,1707724263049,-537.8,0.00023115,2]
[313786127,1707724263058,-529.68,0.00023115,2]
[313786128,1707724263067,-500.0,0.00023115,2]
[313786129,1707724263077,-779.11,0.00023115,2]
[313786130,1707724263086,-984.19,0.00023115,2]
[313786131,1707724263096,-500.0,0.00023115,2]
[313786132,1707724263105,-500.0,0.00023115,2]
[313786133,1707724263115,-500.0,0.00023115,2]
[313786134,1707724263124,-514.18,0.00023115,2]
[313786135,1707724263134,-500.0,0.00023115,2]
[313786136,1707724263143,-313.94988748,0.00023115,2]
[313786137,1707724263153,-500.0,0.00023115,2]
[313786138,1707724263163,-500.0,0.00023115,2]
[313786139,1707724263173,-1281.17,0.00023115,2]
[313786140,1707724263182,-500.0,0.00023115,2]
[313786141,1707724263192,-500.0,0.00023115,2]
[313786142,1707724263202,-500.0,0.00023115,2]
[313786143,1707724263212,-518.38,0.00023115,2]
[313786144,1707724263223,-500.0,0.00023115,2]
[313786145,1707724263233,-500.0,0.00023115,2]
[313786146,1707724263243,-500.0,0.00023115,2]
[313786147,1707724263254,-500.0,0.00023115,2]
[313786148,1707724263264,-500.0,0.00023115,2]
[313786149,1707724263274,-1010.51,0.00023115,2]
[313786150,1707724263284,-617.28,0.00023115,2]
[313786151,1707724263294,-523.04,0.00023115,2]
[313786152,1707724263304,-500.0,0.00023115,2]
[313786153,1707724263315,-500.0,0.00023115,2]
[313786154,1707724263325,-1143.13,0.00023115,2]
[313786155,1707724263335,-500.0,0.00023115,2]
[313786156,1707724263345,-531.64,0.00023115,2]
[313786157,1707724263355,-538.42,0.00023115,2]
[313786158,1707724263366,-500.0,0.00023115,2]
[313786159,1707724263375,-541.44,0.00023115,2]
[313786160,1707724263385,-1417.01,0.00023115,2]
[313786161,1707724263395,-630.75,0.00023115,2]
[313786162,1707724263405,-500.0,0.00023115,2]
[313786163,1707724263416,-611.91,0.00023115,2]
[313786164,1707724263427,-500.0,0.00023115,2]
[313786165,1707724263437,-500.0,0.00023115,2]
[313786166,1707724263446,-737.84,0.00023115,2]
[313786167,1707724263456,-509.88,0.00023115,2]
[313786168,1707724263466,-500.0,0.00023115,2]
[313786169,1707724263476,-500.0,0.00023115,2]
[313786170,1707724263486,-500.0,0.00023115,2]
[313786171,1707724263495,-787.74,0.00023115,2]
[313786172,1707724263505,-625.95,0.00023115,2]
[313786173,1707724263516,-500.0,0.00023115,2]
[313786174,1707724263525,-500.0,0.00023115,2]
[313786175,1707724263534,-531.17,0.00023115,2]
[313786176,1707724263544,-500.0,0.00023115,2]
[313786177,1707724263553,-567.65,0.00023115,2]
[313786178,1707724263563,-500.0,0.00023115,2]
[313786179,1707724263573,-850.14,0.00023115,2]
[313786180,1707724263582,-500.0,0.00023116,2]
[313786181,1707724263593,-500.0,0.00023116,2]
[313786182,1707724263602,-500.0,0.00023116,2]
[313786183,1707724263612,-834.63,0.00023116,2]
[313786184,1707724263621,-500.0,0.00023116,2]
[313786185,1707724263631,-538.57,0.00023116,2]
[313786186,1707724263640,-561.22,0.00023116,2]
[313786187,1707724263649,-923.84,0.00023116,2]
[313786188,1707724263659,-870.36,0.00023116,2]
[313786189,1707724263668,-500.0,0.00023116,2]
[313786190,1707724263678,-500.0,0.00023116,2]
[313786191,1707724263687,-500.0,0.00023116,2]
[313786192,1707724263696,-500.0,0.00023116,2]
[313786193,1707724263706,-500.0,0.00023116,2]
[313786194,1707724263715,-500.0,0.00023116,2]
[313786195,1707724263724,-500.0,0.00023116,2]
[313786196,1707724263734,-500.0,0.00023116,2]
[313786197,1707724263743,-500.0,0.00023116,2]
[313786198,1707724263752,-723.82,0.00023116,2]
[313786199,1707724263761,-500.0,0.00023116,2]
[313786200,1707724263771,-203.0,0.00023144,2]
[313786201,1707724263780,-947.26727179,0.0002317,2]
[313786202,1707724263789,-526.46657711,0.00023174,2]
[313786203,1707724263798,-19195.47966383,0.00023174,2]
[313786204,1707724263807,-156.47701722,0.00023175,2]
[313786205,1707724263818,-344.59181193,0.00023175,2]
[313786206,1707724263827,-210.8060346,0.00023175,2]
[313786207,1707724263836,-272.4381526,0.00023175,2]
[313786208,1707724263845,-224.89895672,0.00023175,2]
[313786209,1707724263854,-3980.85007866,0.00023175,2]
[313786210,1707724263863,-180.45381713,0.00023175,2]
[313786211,1707724263872,-155.7282803,0.00023175,2]
[313786212,1707724263881,-155.89193418,0.00023175,2]
[313786213,1707724263890,-156.02759749,0.00023175,2]
[313786214,1707724263905,-156.34302236,0.00023176,2]
[313786215,1707724263926,-155.46507343,0.00023176,2]
[313786216,1707724263943,-159.71464205,0.00023177,2]
[313786217,1707724263958,-155.44086497,0.00023177,2]
[313786218,1707724263975,-157.54183466,0.00023177,2]
[313786219,1707724263992,-477.51700835,0.00023177,2]
[313786220,1707724264005,-202.93192034,0.00023177,2]
[313786221,1707724264021,-1175.26903164,0.00023177,2]
[313786222,1707724264036,-306.53038858,0.00023177,2]
[313786223,1707724264052,-177.65876606,0.00023177,2]
[313786224,1707724264065,-513.92132122,0.00023177,2]
[313786225,1707724264082,-157.76880464,0.00023177,2]
[313786226,1707724264099,-156.95360865,0.00023177,2]
[313786227,1707724264114,-161.02906378,0.00023177,7]
[313786228,1707724264130,-155.46486926,0.00023177,2]
[313786229,1707724264147,-217.37943085,0.00023177,2]
[313786230,1707724264165,-155.87165205,0.00023177,2]
[313786231,1707724264178,-200.0,0.00023177,2]
[313786232,1707724264191,-424.50117235,0.00023177,2]
[313786233,1707724264206,-3017.32210048,0.00023178,2]
[313786234,1707724264221,-159.3,0.00023249,2]
[313786235,1707724264237,-1174.3921835,0.00023249,2]
[313786236,1707724264252,-500.0,0.00023261,2]
[313786237,1707724264268,-574.16,0.00023261,2]
[313786238,1707724264284,-500.0,0.00023261,2]
[313786239,1707724264300,-500.0,0.00023261,2]
[313786240,1707724264314,-500.0,0.00023261,2]
[313786241,1707724264330,-500.0,0.00023261,2]
[313786242,1707724264344,-567.92,0.00023261,2]
[313786243,1707724264358,-500.0,0.00023261,2]
[313786244,1707724264371,-732.18,0.00023261,2]
[313786245,1707724264385,-500.0,0.00023261,2]
[313786246,1707724264401,-500.0,0.00023261,2]
[313786247,1707724264414,-500.0,0.00023261,2]
[313786248,1707724264429,-500.0,0.00023261,2]
[313786249,1707724264442,-540.94,0.00023261,2]
[313786250,1707724264456,-500.0,0.00023261,2]
[313786251,1707724264470,-500.0,0.00023261,2]
[313786252,1707724264485,-500.0,0.00023261,2]
[313786253,1707724264498,-612.65,0.00023261,2]
[313786254,1707724264513,-500.0,0.00023261,2]
[313786255,1707724264526,-4876.32645959,0.00023264,2]
[313786256,1707724264540,-695.7,0.00023315,2]
[313786257,1707724264553,-150.0,0.00023315,2]
[313786258,1707724264567,-211.08,0.00023373,2]
[313786259,1707724264581,-317.78,0.00023373,2]
[313786260,1707724264594,-153.91,0.00023373,2]
[313786261,1707724264608,-304.0,0.00023373,2]
[313786262,1707724264621,-150.0,0.00023373,2]
[313786263,1707724264635,-150.0,0.00023373,2]
[313786264,1707724264648,-150.0,0.00023373,2]
[313786265,1707724264661,-150.0,0.00023373,2]
[313786266,1707724264674,-1180.52,0.00023383,2]
[313786267,1707724264688,-1896.25,0.00023383,2]
[313786268,1707724264702,-847.31,0.00023383,2]
[313786269,1707724264716,-500.0,0.00023383,2]
[313786271,1707724264729,-534.72,0.00023383,2]
[313786272,1707724264745,-500.0,0.00023383,2]
[313786273,1707724264758,-1982.34,0.00023384,2]
[313786274,1707724264771,-500.0,0.00023384,2]
[313786275,1707724264784,-500.0,0.00023384,2]
[313786276,1707724264798,-2165.45,0.00023384,2]
[313786277,1707724264812,-500.0,0.00023384,2]
[313786278,1707724264826,-621.75,0.00023384,2]
[313786279,1707724264838,-3012.86,0.00023384,2]
[313786280,1707724264852,-2263.16,0.00023384,2]
[313786281,1707724264866,-500.0,0.00023384,2]
[313786282,1707724264883,-797.7,0.00023384,2]
[313786283,1707724264897,-500.0,0.00023384,2]
[313786284,1707724264912,-500.0,0.00023384,2]
[313786285,1707724264926,-698.6,0.00023384,2]
[313786286,1707724264940,-500.0,0.00023384,2]
[313786287,1707724264953,-500.0,0.00023384,2]
[313786288,1707724264967,-12125.24,0.00023384,2]
[313786289,1707724264981,-1922.52,0.00023384,2]
[313786290,1707724264995,-500.0,0.00023384,2]
[313786291,1707724265010,-500.0,0.00023384,2]
[313786292,1707724265025,-2475.59,0.00023384,2]
[313786293,1707724265040,-500.0,0.00023384,2]
[313786294,1707724265058,-500.0,0.00023384,2]
[313786295,1707724265072,-500.0,0.00023384,2]
[313786296,1707724265087,-500.0,0.00023384,2]
[313786297,1707724265102,-500.0,0.00023384,2]
[313786298,1707724265115,-1975.23,0.00023384,2]
[313786299,1707724265130,-500.0,0.00023384,2]
[313786300,1707724265143,-500.0,0.00023386,2]
[313786301,1707724265159,-500.0,0.00023386,2]
[313786302,1707724265173,-617.92,0.00023386,2]
[313786303,1707724265187,-500.0,0.00023386,2]
[313786304,1707724265201,-500.0,0.00023386,2]
[313786305,1707724265216,-500.0,0.00023386,2]
[313786306,1707724265231,-500.0,0.00023386,2]
[313786307,1707724265244,-702.45,0.00023386,2]
[313786308,1707724265258,-500.0,0.00023386,2]
[313786309,1707724265273,-500.0,0.00023386,2]
[313786310,1707724265286,-500.0,0.00023386,2]
[313786311,1707724265299,-500.0,0.00023386,2]
[313786312,1707724265314,-500.0,0.00023386,2]
[313786313,1707724265327,-500.0,0.00023386,2]
[313786314,1707724265341,-3082.76,0.00023386,2]
[313786315,1707724265354,-595.48,0.00023386,2]
[313786316,1707724265368,-500.0,0.00023386,2]
[313786317,1707724265382,-1116.74,0.00023386,2]
[313786318,1707724265396,-500.0,0.00023386,2]
[313786319,1707724265410,-500.0,0.00023386,2]
[313786320,1707724265428,-580.47,0.00023386,2]
[313786321,1707724265442,-5464.12,0.00023386,2]
[313786322,1707724265455,-500.0,0.00023386,2]
[313786323,1707724265469,-500.0,0.00023386,2]
[313786324,1707724265482,-500.0,0.00023386,2]
[313786325,1707724265495,-500.0,0.00023386,2]
[313786326,1707724265511,-5570.51,0.00023386,2]
[313786327,1707724265524,-1834.77,0.00023386,2]
[313786328,1707724265537,-580.52,0.00023386,2]
[313786329,1707724265550,-500.0,0.00023386,2]
[313786330,1707724265563,-20177.86,0.00023386,2]
[313786331,1707724265577,-561.80113866,0.00023386,2]
[313786332,1707724265591,-500.0,0.00023386,2]
[313786333,1707724265604,-500.0,0.00023386,2]
[313786334,1707724265618,-500.0,0.00023386,2]
[313786335,1707724265631,-500.0,0.00023386,2]
[313786336,1707724265644,-500.0,0.00023386,2]
[313786337,1707724265658,-500.0,0.00023386,2]
[313786338,1707724265672,-1991.86,0.00023386,2]
[313786339,1707724265686,-500.0,0.00023386,2]
[313786340,1707724265698,-630.66,0.00023386,2]
[313786341,1707724265712,-511.3,0.00023386,2]
[313786342,1707724265724,-500.0,0.00023386,2]
[313786343,1707724265738,-500.0,0.00023386,2]
[313786344,1707724265751,-500.0,0.00023386,2]
[313786345,1707724265764,-500.0,0.00023386,2]
[313786346,1707724265778,-6710.69,0.00023386,2]
[313786347,1707724265788,-500.0,0.00023386,2]
[313786348,1707724265798,-500.0,0.00023386,2]